Cogmind - Beta 12 @@@ ROGUE MODE // 2023.04.21 @ 15:33:07 Player: Zirov Result: Self-destructed Performance ------------- Evolutions (5) 2500 Regions Visited (8) 1600 Robots Destroyed (131) 655 Value Destroyed (5160) 5160 Prototype IDs (5) 100 Alien Tech Used (0) 0 Bonus (1695) 1695 TOTAL SCORE: 11710 Bonus ------- High Alert Combat Kills 632 Follower Combat Kills 363 Entered Garrisons 200 Used RIF Installer 500 Cogmind --------- Core Integrity 1000/1000 Matter 7/300 Energy 170/170 System Corruption 0% Temperature Cool (0) Movement Walking (120) Location -5/Factory Parts ------- > --- POWER (1) -------- Light Antimatter Reactor > --- PROPULSION (6) --- Flexi-carbon Leg Flexi-carbon Leg Flexi-carbon Leg Flexi-carbon Leg Flexi-carbon Leg > --- UTILITY (6) ------ High-capacity Storage Unit Advanced Signal Interpreter Improved Utility Shielding Relay Coupler [NC] (25) Relay Coupler [Grunt] (8) Drone Bay (0/2) > --- WEAPON (4) ------- Enhanced Autogun Enhanced Autogun > --- INVENTORY (20) --- Angular Momentum Engine Fusion Compressor Armored Treads Armored Treads Armored Treads Armored Leg Armored Leg Advanced Targeting Computer Advanced Targeting Computer Light Regenerative Plating Hardlight Generator Relay Coupler [Sentry] (18) Relay Coupler [Specialist] (26) Relay Coupler [Hunter] (14) Mini Grenade Launcher Katana Peak State ------------ > --- POWER ------------ Light Antimatter Reactor > --- PROPULSION ------- Flexi-carbon Leg Flexi-carbon Leg Flexi-carbon Leg Flexi-carbon Leg Flexi-carbon Leg Flexi-carbon Leg > --- UTILITY ---------- High-capacity Storage Unit Advanced Signal Interpreter Improved Utility Shielding Relay Coupler [NC] Relay Coupler [Grunt] Drone Bay > --- WEAPON ----------- Enhanced Autogun Enhanced Autogun Enhanced Autogun Enhanced Autogun > --- INVENTORY -------- Angular Momentum Engine Fusion Compressor Armored Treads Armored Treads Armored Treads Armored Leg Armored Leg Advanced Targeting Computer Light Regenerative Plating Hardlight Generator Relay Coupler [Sentry] Relay Coupler [Specialist] Relay Coupler [Hunter] Mini Grenade Launcher Katana [Rating: 77] Favorites ----------- Power Improved Deuterium Engine Engine Improved Deuterium Engine Power Core Light Nuclear Core Reactor Light Antimatter Reactor Propulsion Light Treads Treads Light Treads Leg Flexi-carbon Leg Utility High-capacity Storage Unit Device Improved Cooling System Storage High-capacity Storage Unit Processor Core Analyzer Hackware Relay Coupler [NC] Protection Light Regenerative Plating Weapon Enhanced Autogun Energy Gun Medium Laser Energy Cannon Advanced Beam Cannon Ballistic Gun Enhanced Autogun Launcher Mini Grenade Launcher Special Weapon Remote Datajack Slashing Weapon Katana Build | -11 -10 -9 -8 -8 -7 -7 -6 -5 ------- Run | Jun Mat Mat Mat Sto Fac Gar Fac Fac Slots Evolved 10 | . . 2 2 . 2 . 2 2 Power . | . . . . . . . . . Propulsion 4 | . . 1 . . 1 . . 2 Utility 4 | . . . 2 . . . 2 . Weapon 2 | . . 1 . . 1 . . . Parts Attached 153 | 7 19 16 3 39 5 15 37 12 Power 20 | 1 4 3 . 6 . 1 3 2 Engine 17 | 1 4 3 . 5 . 1 3 . Core 1 | . . . . 1 . . . . Reactor 2 | . . . . . . . . 2 Propulsion 44 | 2 2 6 . 9 1 10 8 6 Treads 34 | 2 2 6 . 9 1 10 4 . Leg 10 | . . . . . . . 4 6 Wheel . | . . . . . . . . . Hover . | . . . . . . . . . Flight . | . . . . . . . . . Utility 49 | 2 9 3 3 13 2 . 15 2 Device 18 | 1 3 . 1 3 1 . 7 2 Storage 5 | 1 3 1 . . . . . . Processor 10 | . 3 2 1 1 1 . 2 . Hackware 2 | . . . . . . . 2 . Protection 14 | . . . 1 9 . . 4 . Artifact . | . . . . . . . . . Weapon 40 | 2 4 4 . 11 2 4 11 2 Energy Gun 1 | 1 . . . . . . . . Energy Cannon 3 | . . . . 3 . . . . Ballistic Gun 29 | 1 4 4 . 5 2 4 7 2 Ballistic Cannon . | . . . . . . . . . Launcher 3 | . . . . 2 . . 1 . Special Weapon 2 | . . . . . . . 2 . Impact Weapon . | . . . . . . . . . Slashing Weapon 2 | . . . . 1 . . 1 . Piercing Weapon . | . . . . . . . . . Special Melee Weapon . | . . . . . . . . . Unidentified Prototypes 3 | . . . . 3 . . . . Parts Lost 19 | . 2 1 . 9 . 1 6 . Power 4 | . 1 . . 2 . . 1 . Propulsion 3 | . 1 . . 2 . . . . Utility 6 | . . . . 3 . . 3 . Weapon 6 | . . 1 . 2 . 1 2 . Highest Loss Streak 3 | . 1 1 . 3 . 1 3 . To Critical Strikes . | . . . . . . . . . Average Slot Usage (%) 99 | . 99 100 100 99 100 99 99 89 Engine 9 | . 13 11 9 7 7 7 6 . Treads 26 | . 27 33 27 26 30 30 18 . Leg 1 | . . . . . . . 7 31 Device 9 | . 10 2 9 10 7 7 15 4 Storage 9 | . 11 11 9 9 7 7 6 5 Processor 7 | . 5 8 9 9 7 7 6 5 Protection 4 | . . . 9 6 7 7 8 5 Energy Gun 1 | . 5 . . . . . . . Ballistic Gun 26 | . 22 33 27 22 30 29 24 17 Naked Turns . | . . . . . . . . . Heaviest Build 76 | 13 52 57 58 62 66 69 76 72 Greatest Support 120 | 40 40 60 60 60 80 90 90 120 Greatest Overweight (x) 3 | . 1 . . 1 . . 3 1 Average Overweight (x) . | . . . . . . . . . Largest Inventory Capacity 20 | 8 20 20 20 20 20 20 20 20 Average Capacity 17 | 7 11 19 20 20 20 20 20 20 Most Carried 20 | 2 15 20 16 20 20 20 20 16 Average Carried 15 | 1 8 16 13 17 19 19 18 14 Final Capacity 20 | 8 15 20 20 20 20 20 20 20 Final Carried 20 | 2 15 17 13 20 19 20 16 16 Class Distribution -------------------- 32% | Mutant 25% | Scavenger-Gunner 12% | Gunner 11% | Scavenger-Skirmisher 5% | Scavenger-Tank 5% | Skirmisher Dominant Class ---------------- Mutant | -10/Materials Gunner | -9/Materials Gunner | -8/Materials Scavenger-Tank | -8/Storage Gunner | -7/Factory Scavenger-Gunner | -7/Garrison Scavenger-Skirmisher | -6/Factory Tank | -5/Factory Resources | -11 -10 -9 -8 -8 -7 -7 -6 -5 ----------- Run | Jun Mat Mat Mat Sto Fac Gar Fac Fac Matter Collected 5108 | 301 440 863 . 1382 . 1017 1105 . Remotely 688 | . . . . 688 . . . . Salvage Created 5411 | 145 558 1149 . 1761 . 836 962 . Parts 320 | 9 52 71 . 96 . 53 39 . Haulers Intercepted 9 | . 2 2 . 5 . . . . Recyclers Shooed 5 | . 1 1 . 1 . . 1 1 Parts Field Recycled . | . . . . . . . . . Retrieved Matter . | . . . . . . . . . Parts Self-Destructed . | . . . . . . . . . Prevented . | . . . . . . . . . Kills | -11 -10 -9 -8 -8 -7 -7 -6 -5 ------- Run | Jun Mat Mat Mat Sto Fac Gar Fac Fac Combat Hostiles Destroyed 98 | . 12 20 . 32 . 14 20 . Guns 86 | . 12 20 . 23 . 14 17 . Cannons 1 | . . . . 1 . . . . AOE 11 | . . . . 8 . . 3 . Classes Destroyed 16 | 3 6 1 . 1 . 4 1 . Worker 5 | 1 2 . . 2 . . . . Builder 4 | . 1 . . 2 . . 1 . Tunneler 3 | 3 . . . . . . . . Hauler 9 | . 2 2 . 5 . . . . Recycler 4 | 1 . 2 . 1 . . . . Mechanic 2 | . 1 . . . . . 1 . Watcher 6 | . 3 3 . . . . . . Swarmer 15 | . 6 3 . 4 . . 2 . Cutter 2 | . . . . . . 2 . . Grunt 46 | . 6 9 . 20 . . 11 . Brawler 4 | . . . . . . 2 2 . Duelist 2 | . . . . 1 . . 1 . Sentry 22 | . . 8 . 7 . 7 . . Hunter 2 | . . . . . . 2 . . Programmer 4 | . . . . . . . 4 . Behemoth 1 | . . . . . . 1 . . Best Kill Streak 8 | 2 3 6 . 8 . 2 6 . Combat Bots Only 7 | . 3 6 . 7 . 2 4 . Max Kills in Single Turn 4 | 1 2 2 . 3 . 2 4 . Gunslinging 1 | . 1 1 . 1 . 1 1 . Exploded 3 | . . . . 3 . . 3 . Melee . | . . . . . . . . . Uniques/NPCs Destroyed . | . . . . . . . . . Combat | -11 -10 -9 -8 -8 -7 -7 -6 -5 -------- Run | Jun Mat Mat Mat Sto Fac Gar Fac Fac Damage Taken 5463 | . 474 730 . 1670 . 1062 1527 . Core 515 | . 80 69 . 217 . 92 57 . Absorbed by Shields 8 | . . . . . . . 8 . Redirected to Shielding 63 | . . . . . . . 63 . Regen/Repaired (Parts) 70 | . . . . 14 . 56 . . Core Remaining (%) 81 | 100 68 82 . 60 . 86 93 . Volleys Fired 343 | 11 66 58 . 90 . 53 63 2 Largest 4 | 2 2 3 . 3 . 4 4 2 Hottest 114 | 70 70 69 . 114 . 103 108 50 Shots Fired 990 | 22 131 174 . 252 . 211 196 4 Gun 961 | 22 131 174 . 240 . 211 179 4 Cannon 5 | . . . . 5 . . . . Launcher 9 | . . . . 7 . . 2 . Special 15 | . . . . . . . 15 . Kinetic 909 | 11 90 174 . 240 . 211 179 4 Thermal 57 | 11 41 . . 5 . . . . Explosive 9 | . . . . 7 . . 2 . Electromagnetic . | . . . . . . . . . Robot Hit Streak 18 | 4 10 16 . 12 . 18 14 10 Robot Miss Streak 7 | 2 7 3 . 6 . 2 6 1 Penetration Max . | . . . . . . . . . Secondary Targets 14 | . 1 3 . 4 . 3 3 . Max Gunslinging Chain 2 | . 1 1 . 1 . 1 2 . Shots Hit Robots 610 | 13 79 114 . 167 . 113 121 3 Core Hits 260 | 6 37 43 . 76 . 43 53 2 Critical Kills 2 | . . 1 . . . . 1 . Critical Parts Destroyed 3 | . . 1 . . . 1 1 . Critical Strikes 8 | 2 1 2 . . . 1 2 . Burn 3 | 2 1 . . . . . . . Destroy 5 | . . 2 . . . 1 2 . Melee Attacks 4 | . . . . . . . 4 . Impact . | . . . . . . . . . Slashing 4 | . . . . . . . 4 . Piercing . | . . . . . . . . . Sneak Attacks . | . . . . . . . . . Combat Hostiles . | . . . . . . . . . Follow-up Attacks . | . . . . . . . . . Damage Inflicted 11247 | 164 1067 1782 . 3460 . 1912 2811 51 Guns 9531 | 164 1027 1780 . 2599 . 1912 1998 51 Cannons 80 | . . . . 80 . . . . Explosions 1590 | . . . . 777 . . 813 . Melee . | . . . . . . . . . Ramming 46 | . 40 2 . 4 . . . . Kinetic 9092 | 61 691 1780 . 2599 . 1912 1998 51 Thermal 519 | 103 336 . . 80 . . . . Explosive 1590 | . . . . 777 . . 813 . Electromagnetic . | . . . . . . . . . Impact . | . . . . . . . . . Slashing . | . . . . . . . . . Piercing . | . . . . . . . . . Highest Corruption 7 | . 1 1 . . . . 7 . Average Corruption 4 | . 1 1 . . . . 6 . Corruption Purged . | . . . . . . . . . Corruption Blocked . | . . . . . . . . . Effects 18 | . . 2 . . . . 16 . Message Errors 3 | . . . . . . . 3 . Matter Fused 6 | . . . . . . . 6 . Heat Flow Errors 4 | . . 2 . . . . 2 . Parts Fused 2 | . . . . . . . 2 . Misfires 1 | . . . . . . . 1 . Alerts 1 | . . . . . . . 1 . Weapon Failures 1 | . . . . . . . 1 . Overload Shots . | . . . . . . . . . Overflow Damage 17 | . . . . . . . 17 . Projectiles . | . . . . . . . . . Explosions 17 | . . . . . . . 17 . Melee . | . . . . . . . . . Knockbacks . | . . . . . . . . . Impact . | . . . . . . . . . Kinetic . | . . . . . . . . . Secondary . | . . . . . . . . . Self-Inflicted Damage 105 | . . . . 80 . . 25 . Shots 5 | . . . . 4 . . 1 . Rammed 10 | 1 4 3 . 2 . . . . Targets Rammed 11 | 1 5 3 . 2 . . . . Kicked . | . . . . . . . . . Crushed 1 | . 1 . . . . . . . Highest Temperature 324 | 27 81 222 . 130 . 104 324 . Average Temperature 39 | 13 22 52 . 37 . 19 85 . Received Heat Transfer 2016 | . 123 348 . 801 . 225 519 . Siege Activations . | . . . . . . . . . Robots Corrupted . | . . . . . . . . . Combat Hostiles . | . . . . . . . . . Parts Fried . | . . . . . . . . . Impact Corruptions . | . . . . . . . . . Robots Melted . | . . . . . . . . . Combat Hostiles . | . . . . . . . . . Parts Melted 3 | 2 1 . . . . . . . Heat Transferred 1665 | 444 1073 . . 148 . . . . Parts Sabotaged 4 | . . . . . . . 4 . Parts Stolen . | . . . . . . . . . Parts Stripped . | . . . . . . . . . Power Chain Reactions . | . . . . . . . . . Missiles Intercepted . | . . . . . . . . . Alert | -11 -10 -9 -8 -8 -7 -7 -6 -5 ------- Run | Jun Mat Mat Mat Sto Fac Gar Fac Fac Peak Influence 1048 | 25 174 465 196 673 240 1048 904 417 Initial 550 | . 16 40 196 82 240 168 550 417 Average 358 | 7 78 218 196 331 240 638 682 417 Maximum Alert Level 3 | . . 2 . 2 1 3 3 2 Low Security (%) 41 | 100 100 47 100 30 . 2 . . Level 1 17 | . . 44 . 36 100 16 . . Level 2 25 | . . 7 . 33 . 43 56 100 Level 3 14 | . . . . . . 37 43 . Level 4 . | . . . . . . . . . Level 5 . | . . . . . . . . . High Security . | . . . . . . . . . Max Security . | . . . . . . . . . Squads Dispatched 18 | . 3 2 . 6 . . 6 1 Investigation 7 | . 2 1 . 3 . . . 1 Extermination 3 | . . . . . . . 3 . Reinforcement 5 | . 1 1 . 2 . . 1 . Assault 2 | . . . . . . . 2 . Garrison 1 | . . . . 1 . . . . Intercept . | . . . . . . . . . Searches Triggered . | . . . . . . . . . Construction Impeded . | . . . . . . . . . Haulers Reinforced . | . . . . . . . . . Active Scanning Responses . | . . . . . . . . . Cargo Convoy Interrupts . | . . . . . . . . . Stealth | -11 -10 -9 -8 -8 -7 -7 -6 -5 --------- Run | Jun Mat Mat Mat Sto Fac Gar Fac Fac Distress Signals 8 | . 2 3 . 3 . . . . Communications Jammed . | . . . . . . . . . Distress Signals . | . . . . . . . . . Times Spotted 147 | . 29 29 . 41 . 17 31 . Peak Tracking Total 7 | . 4 6 . 7 . 4 6 . Tactical Retreats 4 | . 2 . . . . 2 . . Traps | -11 -10 -9 -8 -8 -7 -7 -6 -5 ------- Run | Jun Mat Mat Mat Sto Fac Gar Fac Fac Traps Triggered 11 | . 3 . . . . 4 1 3 Indirectly . | . . . . . . . . . Trap Hack Attempts . | . . . . . . . . . Triggered . | . . . . . . . . . Disarmed . | . . . . . . . . . Reprogrammed . | . . . . . . . . . Reused . | . . . . . . . . . Traps Extracted . | . . . . . . . . . Installed . | . . . . . . . . . Triggered . | . . . . . . . . . Machines | -11 -10 -9 -8 -8 -7 -7 -6 -5 ---------- Run | Jun Mat Mat Mat Sto Fac Gar Fac Fac Machines Disabled 14 | . . 3 . 2 . 5 4 . Max in Single Turn 3 | . . 1 . 2 . 2 3 . Garrison Relay 3 | . . . . . . 3 . . Phase Generator 1 | . . . . . . 1 . . Machines Repaired . | . . . . . . . . . Machines Sabotaged . | . . . . . . . . . Overloaded Fab Kills . | . . . . . . . . . Hacking | -11 -10 -9 -8 -8 -7 -7 -6 -5 --------- Run | Jun Mat Mat Mat Sto Fac Gar Fac Fac Machines Accessed 26 | . 8 4 . 9 1 2 1 1 Terminals 21 | . 6 3 . 9 . 2 1 . Fabricators . | . . . . . . . . . Repair Stations 1 | . 1 . . . . . . . Recycling Units 2 | . 1 1 . . . . . . Scanalyzers 1 | . . . . . . . . 1 Garrison Access 1 | . . . . . 1 . . . Total Hacks 68 | . 22 13 . 25 1 3 2 2 Successful 31 | . 10 5 . 11 1 2 . 2 Failed 37 | . 12 8 . 14 . 1 2 . Catastrophic 5 | . 1 1 . 2 . . 1 . Database Lockouts . | . . . . . . . . . Manual 15 | . 6 5 . 4 . . . . Terminals 58 | . 18 10 . 25 . 3 2 . Fabricators . | . . . . . . . . . Repair Stations 3 | . 3 . . . . . . . Recycling Units 4 | . 1 3 . . . . . . Scanalyzers 2 | . . . . . . . . 2 Garrison Access 1 | . . . . . 1 . . . Terminal Hacks 24 | . 8 3 . 11 . 2 . . Part Schematic 1 | . . . . 1 . . . . Prototype ID Bank 1 | . 1 . . . . . . . Open Door 5 | . . . . 4 . 1 . . Level Access Points 1 | . 1 . . . . . . . Emergency Access Points 1 | . . . . . . 1 . . Terminal Index 2 | . 1 . . 1 . . . . Alert Level 2 | . . 1 . 1 . . . . Unreport Threat 1 | . . . . 1 . . . . Locate Traps 5 | . 2 2 . 1 . . . . Dispatch Records 1 | . . . . 1 . . . . Surveillance Status 1 | . 1 . . . . . . . Investigation Status 1 | . . . . 1 . . . . Hauler Manifests 1 | . 1 . . . . . . . Registered Components 1 | . 1 . . . . . . . Fabricator Hacks . | . . . . . . . . . Repair Station Hacks . | . . . . . . . . . Recycling Unit Hacks 2 | . 1 1 . . . . . . Report Inventory 2 | . 1 1 . . . . . . Scanalyzer 2 | . . . . . . . . 2 Insert Component 1 | . . . . . . . . 1 Analyze 1 | . . . . . . . . 1 Garrison Access Hacks 1 | . . . . . 1 . . . Unlock Access 1 | . . . . . 1 . . . Unauthorized Hacks 2 | . 1 1 . . . . . . Terminals 1 | . . 1 . . . . . . Operators 1 | . . 1 . . . . . . Fabricators . | . . . . . . . . . Repair Stations 1 | . 1 . . . . . . . Mechanics 1 | . 1 . . . . . . . Recycling Units . | . . . . . . . . . Scanalyzers . | . . . . . . . . . Garrison Access . | . . . . . . . . . Data Cores Recovered . | . . . . . . . . . Used . | . . . . . . . . . Hacking Detections 21 | . 7 4 . 6 . 2 1 1 Full Trace Events 7 | . 3 1 . 3 . . . . Feedback Events 2 | . 1 1 . . . . . . Corruption 2 | . 1 1 . . . . . . Feedback Blocked . | . . . . . . . . . Robot Schematics Acquired . | . . . . . . . . . Robots Built . | . . . . . . . . . Authchips . | . . . . . . . . . Time . | . . . . . . . . . Total Robot Build Rating . | . . . . . . . . . Part Schematics Acquired 2 | . . . . 1 . . . 1 Parts Built . | . . . . . . . . . Authchips . | . . . . . . . . . Time . | . . . . . . . . . Total Part Build Rating . | . . . . . . . . . Parts Repaired . | . . . . . . . . . Time . | . . . . . . . . . Parts Recycled . | . . . . . . . . . Recycled Matter . | . . . . . . . . . Retrieved Matter . | . . . . . . . . . Retrieved Components . | . . . . . . . . . Parts Scanalyzed 1 | . . . . . . . . 1 Part Schematics Acquired 1 | . . . . . . . . 1 Parts Damaged . | . . . . . . . . . Bothacking | -11 -10 -9 -8 -8 -7 -7 -6 -5 ------------ Run | Jun Mat Mat Mat Sto Fac Gar Fac Fac Used RIF Installer 1 | . . . . . . 1 . . Robots Hacked 5 | . . . . . . . 5 . Non-combat 2 | . . . . . . . 2 . Combat 3 | . . . . . . . 3 . Robot Hacks Applied 8 | . . . . . . . 8 . map_walls 1 | . . . . . . . 1 . map_earth 1 | . . . . . . . 1 . link_fov 1 | . . . . . . . 1 . link_complan 1 | . . . . . . . 1 . spike_heat 1 | . . . . . . . 1 . overload_power 2 | . . . . . . . 2 . reboot_system 1 | . . . . . . . 1 . Relay Couplers Released 12 | . . . . . . 12 . . Machine Destruction 12 | . . . . . . 12 . . Attached 2 | . . . . . . . 2 . Fabnet Peak Effective % . | . . . . . . . . . Robots Rewired . | . . . . . . . . . Allies Hacked . | . . . . . . . . . Hacks Repelled . | . . . . . . . . . Allies | -11 -10 -9 -8 -8 -7 -7 -6 -5 -------- Run | Jun Mat Mat Mat Sto Fac Gar Fac Fac Total Allies 3 | . . . . . . 3 . . Largest Group 2 | . . . . . . 2 2 . Highest-Rated Group 190 | . . . . . . 190 190 . Highest-Rated Ally 95 | . . . . . . 95 95 . Total Orders 4 | . . . . . . . 3 1 EXPLORE 3 | . . . . . . . 2 1 RETURN 1 | . . . . . . . 1 . Ally Attacks 34 | . . . . . . 7 27 . Total Damage 1556 | . . . . . . 175 1381 . Kills 12 | . . . . . . 3 9 . Allies Corrupted 1 | . . . . . . . 1 . Allies Melted . | . . . . . . . . . Intel | -11 -10 -9 -8 -8 -7 -7 -6 -5 ------- Run | Jun Mat Mat Mat Sto Fac Gar Fac Fac Robot Analysis Total . | . . . . . . . . . Derelict Logs Recovered . | . . . . . . . . . Drone Launches 4 | . . . . . . . 3 1 Drone Recoveries 2 | . . . . . . . 2 . Exploration | -11 -10 -9 -8 -8 -7 -7 -6 -5 ------------- Run | Jun Mat Mat Mat Sto Fac Gar Fac Fac Turns Passed 7920 | 180 2182 1133 22 1164 226 1436 1488 89 Spaces Moved 3771 | 87 976 502 12 464 134 780 764 52 Core 5 | 5 . . . . . . . . Treads 3442 | 82 976 502 12 464 134 780 492 . Legs 324 | . . . . . . . 272 52 Wheels . | . . . . . . . . . Hover . | . . . . . . . . . Flight . | . . . . . . . . . Fastest Speed 50 | 50 160 160 160 160 162 162 120 120 Average Speed 161 | 153 171 160 160 161 162 162 149 121 Slowest Speed 330 | 160 240 160 160 245 162 165 330 190 Overloaded Moves . | . . . . . . . . . Propulsion Burnouts . | . . . . . . . . . Robots Hopped . | . . . . . . . . . Cave-ins Triggered . | . . . . . . . . . Exploration Rate (%) 35 | 5 99 52 2 84 3 52 20 6 Regions Visited 8 Branch Regions 1 Pre-discovered Areas . | . . . . . . . . . Known Exits Taken 5 | . 1 . 1 1 1 . 1 . Unknown Exits Taken 2 | 1 . 1 . . . . . . Scrap Searched . | . . . . . . . . . Spaces Dug 4 | . . . . . . . 4 . Terrain Destroyed 185 | . . . . 59 . 85 41 . Melee 4 | . . . . . . . 4 . Projectile 3 | . . . . . . 2 1 . AOE 178 | . . . . 59 . 83 36 . Terrain Rammed . | . . . . . . . . . Walls Destroyed . | . . . . . . . . . Machines Disabled . | . . . . . . . . . Actions | -11 -10 -9 -8 -8 -7 -7 -6 -5 --------- Run | Jun Mat Mat Mat Sto Fac Gar Fac Fac Total 5095 | 107 1344 741 15 745 142 893 1036 72 Wait 650 | . 246 131 . 109 . 20 143 1 Move 3764 | 86 975 501 11 463 134 779 763 52 Hop . | . . . . . . . . . Pick Up 88 | 2 22 15 . 23 2 10 11 3 Fast Attach 30 | 7 5 . . 2 . . 8 8 Attach 41 | . 3 3 2 10 2 4 14 3 Detach 6 | . 2 . . 1 . . 2 1 Swap 83 | . 11 13 1 28 3 11 15 1 Drop 75 | . 9 17 1 17 1 16 13 1 Fire 343 | 11 66 58 . 90 . 53 63 2 Melee 4 | . . . . . . . 4 . Ram . | . . . . . . . . . Kick . | . . . . . . . . . Crush 11 | 1 5 3 . 2 . . . . Escape Stasis . | . . . . . . . . . Rewire . | . . . . . . . . . Trap . | . . . . . . . . . Miscellaneous . | . . . . . . . . . Route ------- -11/Junkyard -10/Materials (discovered 5 exits: *Mat x3 / *Min x2) -9/Materials (discovered 2 exits: [*Mat] / [*Min]) -8/Materials -8/Storage -7/Factory -7/Garrison -6/Factory (discovered 2 exits: *Fac x2) -5/Factory History --------- Turn | Location | Event 5 | -11/Junkyard | Discovered new exit (range 15) 181 | -11/Junkyard | Entered Materials 301 | -10/Materials | Build established: Mutant 862 | -10/Materials | Identified exit to Materials 895 | -10/Materials | Discovered new exit (range 16) 1318 | -10/Materials | Identified exit to Mines 2114 | -10/Materials | Discovered exit to Mines (range 9) 2363 | -10/Materials | Entered another Materials area 2363 | -9/Materials | Evolved 2 slots: Propulsion x1, Weapon x1 2782 | -9/Materials | Discovered new exit (range 11) 2960 | -9/Materials | Build established: Gunner 3481 | -9/Materials | Discovered new exit (range 4) 3496 | -9/Materials | Entered another Materials area 3496 | -8/Materials | Evolved 2 slots: Utility x2 3504 | -8/Materials | Discovered new exit (range 10) 3516 | -8/Materials | Identified exit to Storage 3518 | -8/Materials | Entered Storage 3609 | -8/Storage | Found Prototype Protection 3610 | -8/Storage | Identified Lgt. Regenerative Plating 4249 | -8/Storage | Garrison activated, responded to threat 4351 | -8/Storage | Lost 3 parts (2n1u) 4387 | -8/Storage | Found Prototype Launcher 4428 | -8/Storage | Destroyed 7 combat bots 4431 | -8/Storage | Discovered new exit (range 9) 4474 | -8/Storage | Identified exit to Factory 4682 | -8/Storage | Entered Factory 4682 | -7/Factory | Evolved 2 slots: Propulsion x1, Weapon x1 4908 | -7/Factory | Identified exit to Garrison 4908 | -7/Factory | Entered Garrison 4961 | -7/Garrison | Rescued a captive Derelict 5018 | -7/Garrison | Triggered checkpoint 5063 | -7/Garrison | Garrison Relay disabled 5144 | -7/Garrison | Triggered checkpoint 5246 | -7/Garrison | Build established: Scavenger-Gunner 5379 | -7/Garrison | Spotted B-75 Beast 5383 | -7/Garrison | Destroyed B-75 Beast 5383 | -7/Garrison | Garrison Relay disabled 5564 | -7/Garrison | Phase Generator disabled 5873 | -7/Garrison | Discovered new exit (range 10) 5879 | -7/Garrison | Found embedded Infiltrators 5909 | -7/Garrison | Garrison Relay disabled 5924 | -7/Garrison | Triggered checkpoint 6027 | -7/Garrison | Installed Relay Interface Framework 6344 | -7/Garrison | Entered Factory 6344 | -6/Factory | Accompanied by 2 allies 6344 | -6/Factory | Evolved 2 slots: Utility x2 6900 | -6/Factory | Discovered new exit (range 9) 6951 | -6/Factory | Identified exit to Factory 7044 | -6/Factory | First assault squad dispatched 7150 | -6/Factory | Build established: Scavenger-Skirmisher 7327 | -6/Factory | Discovered exit to Factory (range 15) 7782 | -6/Factory | Lost 3 parts (2u1w) 7832 | -6/Factory | Entered another Factory area 7832 | -5/Factory | Evolved 2 slots: Propulsion x2 7921 | -5/Factory | Self-destructed Last Messages --------------- 07879_ Acquired Flexi-carbon Leg. 07880_ Triggered Segregator Trap. 07880_ Arcs of energy rise from the floor. 07880_ Lgt. Antimatter Reactor blown off. 07880_ Enh. Autogun blown off. 07880_ Drone Bay blown off. 07880_ Enh. Autogun blown off. 07881_ >> Lost connection to Drone. 07883_ Acquired Lgt. Antimatter Reactor. 07885_ Acquired Enh. Autogun. 07888_ Acquired Flexi-carbon Leg. 07893_ Acquired Enh. Autogun. 07896_ Acquired Drone Bay. 07897_ >> Reconnected with Drone. 07898_ Triggered Segregator Trap. 07898_ Arcs of energy rise from the floor. 07898_ Flexi-carbon Leg blown off. 07898_ Enh. Autogun blown off. 07898_ R-10 Processor collects Flexi-carbon Leg. 07899_ Acquired Flexi-carbon Leg. Map ----- +----------------------------------------------------+ | | | | | | | | | | | | | | | | | | | | | | | | | | | | | | | ????###############??????????????????????????????? | | ????# #??????????????????????????????? | | ##### #??####????????????????????????? | | # ! #? ###??????????????????????? | | #= ##"" # ??????????????????????? | | # ##"" !# #??????????????????????? | | # ##G # #??????????????????????? | | # ##"" # #######????????????????? | | # ##"" # #????????????????? | | ##+## ## # #??????+#????????? | | + + ## #@ ! ###### #???????? | | # # ## # ! T ???? | | # #######+##########+## ^!! # #???????? | | # #???????????? | | # ######## #???????????? | | + #??????# #???????????? | | # ########+## #???????????? | | # # ## #???????????? | | ##### # """ ## #???????????? | | #???# # """ ! ## ############???????????? | | #???# # """ ## #??????????????????????? | | #???#+## # ## #??????????????????????? | | ##??????# # "S + +??????????????????????? | | ????????# # """ ## #??????????????????????? | | ????????# # "" =## #??????????????????????? | | ????????# # ## #??????????????????????? | | ??????### ###+####### #??????????????????????? | | #####?# #??# #??????????????????????? | | = ### #??#+#??????????????????????? | | " ## * +???????????????????????????? | | S [ ##T #???????????????????????????? | | ### #???????????????????????????? | | #?# #???????????????????????????? | | #####?# #???????????????????????????? | | ????? [ #???????????????????????????? | +----------------------------------------------------+ Best States ------------- Heat Dissipation 64 Energy Generation 21 Energy Capacity 300 Matter Stores 300 Matter Capacity 300 Sight Range 18 Robot Scan Range 15 Terrain Scan Range 16 Terrain Scan Density 10 Armor Coverage 300 Utility Shielding 66 Evasion (%) 55 Targeting Accuracy 6 Core Analysis 6 Recoil Reduction 4 Relay Coupler Types 2 Relay Coupler Value 48 Item Schematics ----------------- Energy Well | -8/Storage | Hacked Arm. Leg | -5/Factory | Scanalyzed Robot Schematics ------------------ None Fabricated ------------ Nothing Alien Tech Used ----------------- None Achievements -------------- Error 47 Factory Defaults Challenges ------------ None Game ------ Seed SiegePhysicsRail Manual? 0 Play Time 01:43:47 Cumulative 67.8 hours Start 2023.04.21 @ 11:36:10 End 2023.04.21 @ 15:33:07 Sessions 3 Manual Loads 0 Difficulty Rogue Special Mode None Game No. 65 Rogue 65 Adventurer 0 Explorer 0 Win Type - Total 0 Types 0/0/0/0/0/0/0/0/0 Lore% 27 Gallery% 35 Achievement% 27 Wizard Run 0 Options --------- ASCII 1 Keyboard 0 Movement Mouse Keybinds 0 Fullscreen 1 Font 18/SmallcapsGlow Map View 76x50 Tactical HUD 1 Map Filters NONE Filters NONE Steam 1 RUN: bc6b59a8-3527-4afd-9d98-2cc47c562b71